fUST/lending_fUST_20240119
["ID","MTS","AMOUNT","RATE_DAILY","PERIOD"]
[312092150,1705611041653,-500.0,0.00041095,30]
[312092151,1705611041663,-500.0,0.00041095,30]
[312092152,1705611041674,-537.20862517,0.00041095,30]
[312092153,1705611041682,-1172.71,0.00041095,30]
[312092154,1705611041692,-500.0,0.00041095,30]
[312092155,1705611041701,-500.0,0.00041095,30]
[312092156,1705611041710,-602.57,0.00041095,30]
[312092157,1705611041720,-500.0,0.00041095,30]
[312092158,1705611041729,-500.0,0.00041095,30]
[312092159,1705611041738,-500.0,0.00041095,30]
[312092160,1705611041748,-983.64,0.00041095,30]
[312092161,1705611041757,-1455.99,0.00041095,30]
[312092162,1705611041767,-500.0,0.00041095,30]
[312092163,1705611041775,-248.77817227,0.00041095,30]
[312092164,1705611041785,-1184.69,0.00041095,30]
[312092165,1705611041794,-1788.32,0.00041095,30]
[312092166,1705611041803,-1857.23,0.00041095,30]
[312092167,1705611041814,-1022.12,0.00041095,30]
[312092168,1705611041823,-500.0,0.00041095,30]
[312092169,1705611041834,-500.0,0.00041095,2]
[312092170,1705611041844,-375.13052783,0.00041095,2]
[312092171,1705611041853,-500.0,0.00041095,30]
[312092172,1705611041862,-500.0,0.00041095,30]
[312092173,1705611041871,-500.0,0.00041095,30]
[312092174,1705611041880,-1798.36,0.00041095,30]
[312092175,1705611041889,-186.38502284,0.0004136,5]
[312092176,1705611041901,-5022.56272337,0.0004136,5]
[312092243,1705611043348,-2152.25190805,0.00032498,4]
[312092244,1705611043358,-4319.5444584,0.00041359,4]
[312092245,1705611043368,-14004.20363354,0.0004136,5]
[312092246,1705611043381,-1630.2,0.0004136,5]
[312092260,1705611046425,-500.0,0.00041095,30]
[312092261,1705611046434,-237.38425452,0.00041359,4]
[312092263,1705611046443,-3551.20885178,0.00041359,3]
[312092273,1705611260676,1000.0,0.00012,7]
[312092275,1705611307542,-155.0,0.00021,2]
[312092280,1705611376440,-1831.0,0.00020999,2]
[312092286,1705611442488,-154.93802479,0.00020998,4]
[312092287,1705611442508,-1164.72102978,0.00020999,2]
[312092288,1705611442529,-435.49835715,0.00021,2]
[312092289,1705611442549,-2813.10332854,0.00024243,2]
[312092290,1705611442569,-154.95351395,0.00024243,2]
[312092291,1705611442589,-425.62034809,0.00024244,2]
[312092292,1705611442609,-554.91533247,0.00024245,2]
[312092294,1705611514666,-170.669218,0.00024246,2]
[312092295,1705611514687,-1830.62942806,0.00024999,2]
[312092296,1705611514708,-701.11141564,0.00025,2]
[312092297,1705611514728,-940.5899383,0.00025,2]
[312092306,1705611648033,-1912.17609853,0.00024996,2]
[312092307,1705611648054,-1601.89034871,0.00024997,2]
[312092308,1705611648076,-20747.93355276,0.00024998,2]
[312092320,1705611847712,-168.667942,0.00023934,2]
[312092321,1705611847733,-24731.332058,0.00024143,2]
[312092348,1705611917350,-643.9449239,0.00024138,2]
[312092349,1705611917371,-294.63708493,0.00024139,2]
[312092350,1705611917493,-154.9690062,0.0002414,2]
[312092351,1705611917515,-154.9690062,0.00024141,4]
[312092352,1705611917535,-2995.72102978,0.00024141,2]
[312092353,1705611917556,-1153.75894899,0.00024142,2]
[312092367,1705611984998,-554.91533247,0.00024139,2]
[312092368,1705611985020,-178.61661634,0.0002414,2]
[312092369,1705611985041,-760.13811444,0.00024141,5]
[312092370,1705611985061,-1319.32993675,0.00024142,2]
[312092454,1705612153247,-340.0144428,0.00024142,2]
[312092455,1705612153268,-168.667942,0.00024143,2]
[312092456,1705612153287,-413.73210326,0.00024143,2]
[312092457,1705612153307,-60.8219942,0.00025,2]
[312092458,1705612153326,-168.667942,0.00025022,2]
[312092459,1705612153348,-154.9690062,0.00025295,4]
[312092460,1705612153368,-20887.67394558,0.00025296,2]
[312092461,1705612153388,-2093.74877759,0.00025297,2]
[312092462,1705612153408,-167.360777,0.00025984,2]
[312092463,1705612153429,-526.29712741,0.00026108,2]
[312092464,1705612153448,-168.667942,0.00026109,2]
[312092465,1705612153469,-168.667942,0.00027197,2]
[312092466,1705612153488,-15614.83727926,0.000275,2]
[312092467,1705612153508,-927.74417623,0.00028749,2]
[312092468,1705612153528,-524.3584812,0.00028798,5]
[312092469,1705612153547,-154.95351395,0.00029,2]
[312092470,1705612153567,-11788.10766907,0.000295,30]
[312092471,1705612153588,-1919.51264673,0.0003,3]
[312092472,1705612153607,-681.78811125,0.0003,3]
[312092473,1705612153627,-152.92830629,0.00030124,7]
[312092474,1705612153646,-152.92830629,0.00030135,7]
[312092475,1705612153666,-500.0,0.00030136,2]
[312092476,1705612153685,-306.0,0.00030137,2]
[312092477,1705612153704,-327.9954237,0.00030137,2]
[312092478,1705612153724,-198.9082381,0.00030137,2]
[312092479,1705612153743,-457.5024889,0.00030137,2]
[312092480,1705612153762,-153.0,0.00030137,2]
[312092481,1705612153782,-198.957615,0.00030137,2]
[312092482,1705612153801,-162.563631,0.00030137,2]
[312092483,1705612153820,-162.838164,0.00030137,2]
[312092484,1705612153842,-152.92830629,0.00030177,7]
[312092485,1705612153861,-153.88950461,0.00030239,7]
[312092486,1705612153881,-200.0,0.00030249,15]
[312092487,1705612153903,-500.0,0.00030273,2]
[312092488,1705612153922,-500.0,0.0003041,2]
[312092489,1705612153941,-162.838164,0.00031096,2]
[312092490,1705612153961,-344.58931583,0.00031358,4]
[312092491,1705612153981,-10748.4,0.00031668,3]
[312092492,1705612154000,-11705.18132022,0.00031678,4]
[312092493,1705612154030,-356.13076283,0.000319,2]
[312092494,1705612154050,-1171.0,0.0003197,30]
[312092495,1705612154069,-150.5,0.0003197,30]
[312092496,1705612154089,-1171.0,0.0003198,30]
[312092497,1705612154109,-150.5,0.0003198,30]
[312092498,1705612154131,-175.0,0.00031989,2]
[312092499,1705612154152,-220.15097031,0.00031989,2]
[312092500,1705612154174,-3349.2535321,0.00031989,2]
[312092501,1705612154195,-154.66967528,0.00031989,2]
[312092502,1705612154214,-1171.0,0.0003199,30]
[312092503,1705612154233,-150.5,0.0003199,30]
[312092504,1705612154253,-3644.85296452,0.00031998,4]
[312092505,1705612154273,-569.88082184,0.00031998,4]
[312092506,1705612154292,-222.27499817,0.00031998,4]
[312092507,1705612154312,-200.98315984,0.00031998,4]
[312092508,1705612154332,-8961.85654012,0.00031998,4]
[312092509,1705612154352,-154.95351395,0.00031998,4]
[312092510,1705612154371,-331.52516909,0.00031998,4]
[312092511,1705612154391,-155.70270069,0.00031998,4]
[312092512,1705612154411,-156.41283895,0.00031998,4]
[312092513,1705612154431,-1735.58180168,0.00031998,4]
[312092514,1705612154453,-155.00310006,0.00031998,4]
[312092515,1705612154475,-522.57590805,0.00031998,4]
[312092516,1705612154495,-2071.67545931,0.00031998,4]
[312092517,1705612154515,-721.33834789,0.00031998,2]
[312092518,1705612154539,-156.20759517,0.00031998,4]
[312092519,1705612154560,-155.82500385,0.00031998,2]
[312092520,1705612154580,-701.95047309,0.00031998,4]
[312092521,1705612154601,-531.63445466,0.00031998,4]
[312092522,1705612154622,-160.22604488,0.00031998,4]
[312092523,1705612154641,-221.06387007,0.00031998,4]
[312092524,1705612154662,-1196.96135251,0.00031998,4]
[312092525,1705612154682,-688.82709207,0.00031998,4]
[312092526,1705612154702,-164.13059612,0.00031998,4]
[312092527,1705612154723,-159.61834637,0.00031998,4]
[312092528,1705612154743,-154.9690062,0.00031998,4]
[312092529,1705612154763,-451.00616576,0.00031998,2]
[312092530,1705612154872,-1588.23927366,0.00031998,4]
[312092531,1705612154893,-2823.75361597,0.00031998,4]
[312092532,1705612154913,-406.64765626,0.00031998,4]
[312092533,1705612154934,-361.23328326,0.00031998,2]
[312092534,1705612154954,-285.86450988,0.00031998,4]
[312092535,1705612154974,-1830.62942806,0.00031998,4]
[312092536,1705612154996,-164.93896393,0.00031998,4]
[312092537,1705612155016,-420.38286126,0.00031998,4]
[312092538,1705612155037,-186.85880718,0.00031998,4]
[312092539,1705612155057,-243.55995412,0.00031998,4]
[312092540,1705612155077,-194.56442205,0.00031998,4]
[312092541,1705612155098,-828.68224376,0.00031998,4]
[312092542,1705612155118,-641.55706452,0.00031998,4]
[312092543,1705612155138,-309.00651083,0.00031998,4]
[312092544,1705612155158,-428.39984175,0.00031998,4]
[312092545,1705612155178,-4718.82684458,0.00031998,3]
[312092546,1705612155197,-3902.80008623,0.00031998,4]
[312092547,1705612155217,-1022.28029839,0.00031998,5]
[312092548,1705612155236,-507.82760083,0.00031998,4]
[312092549,1705612155256,-234.61726136,0.00031998,4]
[312092550,1705612155278,-259.62152632,0.00031998,4]
[312092551,1705612155297,-2511.95714952,0.00031998,4]
[312092552,1705612155317,-472.06419775,0.00031999,4]
[312092553,1705612155338,-9256.92805084,0.00031999,4]
[312092554,1705612155359,-500.0,0.00031999,2]
[312092555,1705612155380,-455.65162388,0.00031999,2]
[312092556,1705612155400,-500.0,0.00031999,2]
[312092557,1705612155422,-500.0,0.00031999,2]
[312092558,1705612155447,-440.87596717,0.00031999,2]
[312092559,1705612155467,-206.04326019,0.00031999,2]
[312092560,1705612155488,-500.0,0.00031999,2]
[312092561,1705612155511,-500.0,0.00031999,2]
[312092562,1705612155537,-192.51913755,0.00031999,2]
[312092563,1705612155556,-500.0,0.00031999,2]
[312092564,1705612155579,-500.0,0.00031999,2]
[312092565,1705612155605,-500.0,0.00031999,2]
[312092566,1705612155626,-625.83420905,0.00031999,2]
[312092567,1705612155647,-500.0,0.00031999,2]
[312092568,1705612155668,-500.0,0.00031999,2]
[312092569,1705612155689,-500.0,0.00031999,2]
[312092570,1705612155710,-500.0,0.00031999,2]
[312092571,1705612155732,-174.03436576,0.00031999,2]
[312092572,1705612155753,-500.0,0.00031999,2]
[312092573,1705612155773,-500.0,0.00031999,2]
[312092574,1705612155794,-500.0,0.00031999,2]
[312092575,1705612155814,-645.60378741,0.00031999,2]
[312092576,1705612155836,-245.49154179,0.00031999,2]
[312092577,1705612155859,-1024.24884685,0.00032,3]
[312092578,1705612155883,-18289.61863068,0.00032,10]
[312092579,1705612155904,-130043.9860824,0.00032,15]
[312092580,1705612156165,-13330.96652557,0.00032,15]
[312092581,1705612156185,-3133.37588219,0.00032,2]
[312092582,1705612156204,-650.89335401,0.00032,4]
[312092583,1705612156224,-162.838164,0.00032055,2]
[312092584,1705612156244,-3035.34150838,0.000325,15]
[312092585,1705612156263,-73544.76968585,0.000325,20]
[312092589,1705612174264,-154.9690062,0.00029701,4]
[312092590,1705612174287,-829.06941204,0.00032499,4]
[312092591,1705612174310,-28112.46059091,0.000325,20]
[312092592,1705612174331,-250.0,0.00032876,7]
[312092593,1705612174354,-184.094376,0.00032877,2]
[312092594,1705612174386,-184.094376,0.00032877,120]
[312092595,1705612174410,-154.23219767,0.00032962,7]
[312092596,1705612174435,-154.23219767,0.0003299,7]
[312092597,1705612174462,-7464.17,0.00032992,3]
[312092598,1705612174486,-8957.0,0.00032993,3]
[312092599,1705612174515,-386.32476631,0.00033,2]
[312092600,1705612174537,-154.95351395,0.00033,4]
[312092601,1705612174560,-6760.97413379,0.00033,4]
[312092602,1705612174582,-196.0,0.00033,2]
[312092603,1705612174602,-153.0,0.00033,2]
[312092604,1705612174627,-3779.6014011,0.00033001,4]
[312092605,1705612174647,-1830.62942806,0.00033001,4]
[312092606,1705612174668,-3062.94640145,0.00033001,2]
[312092607,1705612174688,-471.33694125,0.00033002,2]
[312092608,1705612174712,-434.00164402,0.00033002,4]
[312092609,1705612174732,-294.59443179,0.00033002,4]
[312092610,1705612174753,-500.0,0.00033002,4]
[312092611,1705612174773,-500.0,0.00033002,4]
[312092612,1705612174795,-500.0,0.00033002,4]
[312092613,1705612174816,-500.0,0.00033002,4]
[312092614,1705612174836,-500.0,0.00033002,4]
[312092615,1705612174856,-500.0,0.00033002,4]
[312092616,1705612174879,-590.95627332,0.00033002,4]
[312092617,1705612174899,-500.0,0.00033002,4]
[312092618,1705612174922,-500.0,0.00033002,4]
[312092619,1705612174942,-500.0,0.00033002,4]
[312092620,1705612174964,-500.0,0.00033002,4]
[312092621,1705612174987,-500.0,0.00033002,4]
[312092622,1705612175010,-500.0,0.00033002,4]
[312092623,1705612175033,-500.0,0.00033002,4]
[312092624,1705612175056,-500.0,0.00033002,4]
[312092625,1705612175080,-500.0,0.00033002,4]
[312092626,1705612175102,-500.0,0.00033002,4]
[312092627,1705612175132,-500.0,0.00033002,4]
[312092628,1705612175154,-500.0,0.00033002,4]
[312092629,1705612175175,-500.0,0.00033002,4]
[312092630,1705612175197,-629.58521934,0.00033002,4]
[312092631,1705612175218,-500.0,0.00033002,4]
[312092632,1705612175240,-377.1880376,0.00033002,4]
[312092633,1705612175260,-500.0,0.00033002,4]
[312092634,1705612175282,-500.0,0.00033002,4]
[312092635,1705612175303,-500.0,0.00033002,4]
[312092636,1705612175323,-500.0,0.00033002,4]
[312092637,1705612175346,-500.0,0.00033002,7]
[312092638,1705612175374,-195.27926738,0.00033002,7]
[312092639,1705612175399,-500.0,0.00033002,7]
[312092640,1705612175422,-500.0,0.00033002,7]
[312092641,1705612175449,-519.38935316,0.00033002,7]
[312092642,1705612175475,-500.0,0.00033002,7]
[312092643,1705612175499,-500.0,0.00033002,7]
[312092644,1705612175520,-500.0,0.00033002,7]
[312092645,1705612175542,-219.37565679,0.00033002,7]
[312092646,1705612175563,-500.0,0.00033002,7]
[312092648,1705612175583,-500.0,0.00033002,7]
[312092649,1705612175605,-500.0,0.00033002,7]
[312092650,1705612175633,-500.0,0.00033002,7]
[312092651,1705612175655,-255.52577432,0.00033002,7]
[312092652,1705612175676,-183.53667061,0.00033002,4]
[312092653,1705612175697,-559.11865634,0.00033002,7]
[312092654,1705612175717,-484.20284056,0.00033002,7]
[312092655,1705612175740,-512.12442342,0.00033003,3]
[312092656,1705612175762,-79195.07408056,0.00033003,6]
[312092657,1705612175784,-50000.0,0.00033003,5]
[312092658,1705612175806,-37038.86733509,0.00033003,5]
[312092889,1705612238569,-22008.50560272,0.000295,30]
[312092890,1705612238579,-200.0,0.00032449,15]
[312092891,1705612238589,-1273.45080855,0.00032993,2]
[312092892,1705612238598,-386.32476631,0.00033,2]
[312092893,1705612238607,-27904.05690668,0.00033003,5]
[312092894,1705612238617,-38586.53823055,0.00033008,6]
[312092895,1705612238626,-162.838164,0.00033014,2]
[312092896,1705612238636,-154.23219767,0.00033029,7]
[312092897,1705612238646,-153.0,0.00033151,2]
[312092898,1705612238654,-356.13076282,0.000334,2]
[312092899,1705612238664,-5388.77112641,0.00033732,4]
[312092900,1705612238673,-154.23219767,0.0003384,7]
[312092901,1705612238682,-162.838164,0.00033973,2]
[312092902,1705612238690,-152.92830629,0.0003401,7]
[312092903,1705612238699,-154.9690062,0.00034198,5]
[312092905,1705612238709,-500.0,0.00034246,7]
[312092907,1705612238717,-10799.91264334,0.000345,7]
[312092908,1705612238726,-153.0,0.00034521,2]
[312092910,1705612238735,-154.23219767,0.00034735,7]
[312092912,1705612238744,-1206.23882079,0.00034793,2]
[312092914,1705612238753,-356.13076282,0.000349,2]
[312092916,1705612238762,-162.838164,0.00034932,2]
[312092918,1705612238772,-430.86875032,0.0003499,6]
[312092920,1705612238781,-2084.34070549,0.00035,4]
[312092923,1705612238791,-154.95351395,0.00035,4]
[312092925,1705612238800,-154.95351395,0.00035,2]
[312092927,1705612238809,-309.89153874,0.00035,4]
[312092929,1705612238818,-215.84548789,0.00035,2]
[312092931,1705612238827,-215.84548789,0.00035,2]
[312092933,1705612238836,-215.84548789,0.00035,2]
[312092935,1705612238845,-215.84548789,0.00035,2]
[312092937,1705612238853,-215.84548789,0.00035,2]
[312092939,1705612238863,-215.84548789,0.00035,2]
[312092940,1705612238872,-215.84548789,0.00035,2]
[312092942,1705612238880,-215.84548789,0.00035,2]
[312092945,1705612238890,-215.84548789,0.00035,2]
[312092947,1705612238899,-215.84548,0.00035,2]
[312092949,1705612238908,-1719.41141957,0.00035613,15]
[312092951,1705612238917,-591.69239792,0.00035614,2]
[312092952,1705612238926,-475.72668137,0.00035615,4]
[312092954,1705612238935,-615.51661901,0.00035616,7]
[312092956,1705612238944,-760.602813,0.00035616,120]
[312092958,1705612238954,-280.0,0.00035694,15]
[312092960,1705612238963,-162.563631,0.0003589,2]
[312092962,1705612238972,-162.838164,0.0003589,2]
[312092964,1705612238981,-153.88950461,0.00035905,7]
[312092966,1705612238990,-154.23219767,0.00035989,7]
[312092968,1705612238999,-154.23219767,0.00036094,7]
[312092970,1705612239008,-2580.86,0.00036141,2]
[312092972,1705612239017,-5000.0,0.00036164,2]
[312092974,1705612239026,-153.0,0.00036247,2]
[312092975,1705612239035,-356.13076282,0.000364,2]
[312092976,1705612239044,-152.92830629,0.00036517,7]
[312092977,1705612239053,-154.23219767,0.0003678,7]
[312092979,1705612239062,-152.92830629,0.00036813,7]
[312092981,1705612239071,-154.23219767,0.00036838,7]
[312092983,1705612239080,-162.838164,0.00036849,2]
[312092985,1705612239089,-153.88950461,0.00036968,7]
[312092987,1705612239098,-222.09327159,0.0003705,2]
[312092989,1705612239107,-500.0,0.00037292,2]
[312092990,1705612239116,-363.57254721,0.00037292,2]
[312092992,1705612239125,-500.0,0.00037292,2]
[312092994,1705612239134,-500.0,0.00037292,2]
[312092996,1705612239144,-500.0,0.00037292,2]
[312092997,1705612239153,-325.85777226,0.00037292,2]
[312092998,1705612239165,-281.43139894,0.00037292,2]
[312092999,1705612239174,-5000.0,0.00037293,2]
[312093000,1705612239183,-162.838164,0.00037808,2]
[312093001,1705612239192,-356.13076282,0.000379,2]
[312093003,1705612239201,-152.230842,0.00037902,2]
[312093005,1705612239210,-152.230841,0.00037902,2]
[312093006,1705612239219,-155.29532475,0.00037998,4]
[312093008,1705612239228,-319.0046286,0.00037998,4]
[312093010,1705612239237,-15988.18118084,0.00037998,4]
[312093012,1705612239247,-873.68475195,0.00037998,4]
[312093014,1705612239255,-328.54634455,0.00037998,4]
[312093015,1705612239264,-155.4318566,0.00037998,4]
[312093017,1705612239274,-2339.67234834,0.00037998,4]
[312093018,1705612239283,-6760.97413379,0.00037998,4]
[312093020,1705612239292,-49001.43341778,0.00037999,10]
[312093021,1705612239301,-186.00070458,0.00037999,4]
[312093023,1705612239310,-500.0,0.00037999,4]
[312093025,1705612239319,-500.0,0.00037999,4]
[312093026,1705612239329,-500.0,0.00037999,4]
[312093028,1705612239338,-500.0,0.00037999,4]
[312093030,1705612239348,-154.57376399,0.00037999,4]
[312093032,1705612239356,-500.0,0.00037999,4]
[312093034,1705612239366,-500.0,0.00037999,4]
[312093035,1705612239374,-500.0,0.00037999,4]
[312093037,1705612239384,-610.12200238,0.00037999,4]
[312093039,1705612239393,-500.0,0.00037999,4]
[312093041,1705612239402,-526.31282256,0.00037999,4]
[312093042,1705612239412,-500.0,0.00037999,4]
[312093043,1705612239421,-500.0,0.00037999,4]
[312093044,1705612239431,-500.0,0.00037999,4]
[312093045,1705612239440,-500.0,0.00037999,4]
[312093046,1705612239449,-477.7511316,0.00037999,4]
[312093047,1705612239460,-500.0,0.00037999,4]
[312093048,1705612239472,-155.81680595,0.00037999,7]
[312093049,1705612239482,-500.0,0.00037999,7]
[312093050,1705612239491,-500.0,0.00037999,7]
[312093051,1705612239501,-494.3933292,0.00037999,7]
[312093052,1705612239510,-461.0735492,0.00037999,7]
[312093053,1705612239519,-342227.43641257,0.00038,4]
[312093054,1705612239529,-3184.89020531,0.00038,7]
[312093055,1705612239538,-154.9690062,0.00038,2]
[312093056,1705612239550,-3288.33430173,0.00038,2]
[312093057,1705612239560,-2793.76201869,0.00038,14]
[312093058,1705612239570,-16966.73770177,0.00038,4]
[312093059,1705612239579,-152.92830629,0.00038204,7]
[312093060,1705612239589,-2137.88596785,0.000385,4]
[312093061,1705612239599,-153.0,0.00038663,14]
[312093062,1705612239608,-154.23219767,0.00038721,7]
[312093063,1705612239617,-162.838164,0.00038767,2]
[312093064,1705612239626,-154.23219767,0.00038862,7]
[312093065,1705612239635,-2206.63198521,0.00038995,2]
[312093066,1705612239724,-5499.99999004,0.00039,2]
[312093067,1705612239733,-391.0,0.00039263,30]
[312093068,1705612239742,-151.0,0.00039402,4]
[312093069,1705612239752,-162.838164,0.00039726,2]
[312093070,1705612239761,-1171.0,0.00039769,30]
[312093071,1705612239770,-1171.0,0.00039779,30]
[312093072,1705612239779,-235.56,0.00039783,30]
[312093073,1705612239788,-1171.0,0.00039789,30]
[312093074,1705612239798,-5000.0,0.00039793,4]
[312093075,1705612239807,-161.69,0.00039799,2]
[312093076,1705612239817,-500.0,0.00039799,7]
[312093077,1705612239826,-500.0,0.00039799,7]
[312093078,1705612239835,-207.59150178,0.00039799,7]
[312093079,1705612239844,-483.3133487,0.00039799,7]
[312093080,1705612239853,-500.0,0.00039799,7]
[312093081,1705612239862,-490.93032299,0.00039799,7]
[312093082,1705612239871,-519.73461692,0.00039799,7]
[312093083,1705612239880,-500.0,0.00039799,7]
[312093084,1705612239889,-500.0,0.00039799,7]
[312093085,1705612239900,-500.0,0.00039799,7]
[312093086,1705612239909,-500.0,0.00039799,7]
[312093087,1705612239922,-500.0,0.00039799,7]
[312093088,1705612239931,-500.0,0.00039799,7]
[312093089,1705612239940,-571713.24409702,0.000398,7]
[312093103,1705612241492,-3599.62,0.00032998,3]
[312093104,1705612241502,-2000.0,0.00034029,2]
[312093105,1705612241512,-2823.75361597,0.00037998,4]
[312093106,1705612241521,-707.42751302,0.000398,7]
[312093107,1705612241530,-5000.0,0.00039853,7]
[312093108,1705612241539,-5000.0,0.00039853,7]
[312093109,1705612241550,-5000.0,0.00039855,7]
[312093110,1705612241559,-26014.14246346,0.000399,3]
[312093111,1705612241571,-12411.85011549,0.000399,3]
[312093145,1705612243574,-2000.0,0.00034029,2]
[312093147,1705612243584,-74.8480195,0.000399,3]
[312093148,1705612243594,-1500.0,0.000399,2]
[312093149,1705612243603,-5767.6855528,0.0003999,4]
[312093150,1705612243612,-154.9690062,0.0004,4]
[312093151,1705612243623,-1599.63436256,0.0004,4]
[312093152,1705612243632,-500.0,0.0004,10]
[312093153,1705612243642,-1035.96159502,0.0004,30]
[312093187,1705612246858,-780.66665203,0.0004,30]
[312093188,1705612246867,-238.19776867,0.0004,4]
[312093189,1705612246876,-192.82732,0.0004,2]
[312093190,1705612246884,-1117.32490242,0.0004,60]
[312093191,1705612246893,-3007.1333077,0.0004,120]
[312093206,1705612372934,-152.92830631,0.00030671,7]
[312093207,1705612372954,-158.77555497,0.0003157,7]
[312093208,1705612372974,-153.49531254,0.00033059,7]
[312093209,1705612372996,-467.01771876,0.00033431,2]
[312093210,1705612373016,-467.01771875,0.00033432,2]
[312093211,1705612373036,-467.01771875,0.00033432,2]
[312093212,1705612373057,-154.9690062,0.00033531,5]
[312093213,1705612373077,-386.32476631,0.00033532,2]
[312093214,1705612373098,-153.49531254,0.00033607,7]
[312093215,1705612373117,-153.49531254,0.00034238,7]
[312093216,1705612373136,-153.49531257,0.00034982,7]
[312093217,1705612373155,-158.77555497,0.00034988,7]
[312093218,1705612373175,-591.69239792,0.00035,2]
[312093219,1705612373195,-1717.50000687,0.00036619,4]
[312093220,1705612415021,-1510.0,0.00034196,4]
[312093221,1705612423711,1100.0,0.00035,15]
[312093237,1705613131124,-154.93802479,0.00030053,5]
[312093238,1705613131145,-815.53530631,0.00030054,4]
[312093239,1705613131270,-162.398539,0.00030137,2]
[312093240,1705613131292,-162.838164,0.00030137,2]
[312093241,1705613131312,-168.667942,0.0003105,2]
[312093242,1705613131334,-339.00052618,0.00032045,2]
[312093243,1705613131355,-168.667942,0.00033167,2]
[312093244,1705613131374,-6760.97413379,0.00033208,4]
[312093245,1705613131397,-2194.3479312,0.00033209,5]
[312093246,1705613131416,-151.2478173,0.00033246,2]
[312093247,1705613131438,-5473.13687178,0.00033251,5]
[312093248,1705613131459,-24900.0,0.0003368,2]
[312093249,1705613131479,-1273.45080855,0.0003499,2]
[312093250,1705613131500,-410.41281499,0.00035,4]
[312093251,1705613131521,-283.01176432,0.00035,3]
[312093252,1705613131541,-351.14579978,0.00035,4]
[312093253,1705613131560,-1719.41141957,0.00035,15]
[312093254,1705613131579,-591.69239792,0.00035,2]
[312093255,1705613131598,-2084.34070549,0.00035,4]
[312093256,1705613131617,-13389.41685139,0.00035032,4]
[312093257,1705613131636,-333.00867696,0.00035032,4]
[312093258,1705613131656,-158.77555497,0.00035036,7]
[312093259,1705613131676,-152.92830631,0.00035214,7]
[312093260,1705613131696,-168.667942,0.00035283,2]
[312093261,1705613131720,-570.452109,0.00035616,120]
[312093262,1705613131741,-250.0,0.00036529,15]
[312093263,1705613131762,-166.387399,0.00036621,2]
[312093264,1705613131783,-152.92830631,0.00036923,7]
[312093265,1705613131804,-1521.08799014,0.000377,2]
[312093266,1705613131823,-198.8089634,0.000379,2]
[312093267,1705613131842,-883.0,0.0003797,30]
[312093268,1705613131861,-883.0,0.0003798,30]
[312093269,1705613131880,-4149.02,0.0003799,3]
[312093270,1705613131899,-883.0,0.0003799,30]
[312093271,1705613131920,-200.13788167,0.0003799,2]
[312093272,1705613131940,-1072.23249242,0.00037998,4]
[312093273,1705613131959,-539.83413204,0.00037998,4]
[312093274,1705613131977,-483.68325232,0.00037999,4]
[312093275,1705613131997,-480.5367746,0.00037999,2]
[312093276,1705613132018,-497.1966646,0.00037999,2]
[312093277,1705613132039,-256.06221171,0.00038,3]
[312093278,1705613132058,-19397.13931219,0.00038,4]
[312093280,1705613235078,-154.93802479,0.00033291,5]
[312093281,1705613235102,-17253.87052631,0.00033292,5]
[312093282,1705613235127,-2084.34070549,0.00036934,4]
[312093283,1705613235236,-591.69239792,0.00036934,2]
[312093284,1705613235259,-1719.41141957,0.00036934,15]
[312093285,1705613235280,-24900.0,0.00036935,2]
[312093286,1705613235301,-333.00867696,0.00037889,4]
[312093287,1705613235321,-6760.97413379,0.00037889,4]
[312093288,1705613235340,-11157.84737616,0.00037889,2]
[312093289,1705613235360,-2547.79,0.0003789,3]
[312093290,1705613235380,-4858.46,0.0003789,3]
[312093291,1705613235400,-6080.18839901,0.000379,2]
[312093292,1705613238132,-103173.67288038,0.000379,2]
[312093293,1705613250255,-152.92830631,0.00030197,7]
[312093294,1705613250279,-152.92830631,0.00033163,7]
[312093295,1705613250302,-154.93802479,0.00034108,5]